fUSD/lending_fUSD_20240225
["ID","MTS","AMOUNT","RATE_DAILY","PERIOD"]
[315134203,1708869794259,162.08,0.00022813,2]
[315134205,1708869839286,-1300000.0,0.00024,30]
[315134206,1708869868603,164.99,0.00022781,2]
[315134207,1708869869005,164.99,0.00023351,2]
[315134208,1708869951358,514.58,0.0002339,2]
[315134209,1708869964858,373.62,0.00022773,2]
[315134210,1708870026570,2992.047,0.000235,2]
[315134211,1708870030504,236.43,0.00020859,2]
[315134212,1708870030729,236.43,0.00023123,2]
[315134213,1708870144851,737.6,0.00022771,2]
[315134214,1708870169710,1500.0,0.00023,2]
[315134215,1708870190732,453.77,0.00022767,2]
[315134216,1708870195182,155.0,0.00023,2]
[315134217,1708870209176,260.58002488,0.00023,2]
[315134218,1708870225926,826.52,0.00023178,2]
[315134222,1708870231713,-928.48371708,0.00023595,2]
[315134223,1708870231722,-1015.47330031,0.00023596,2]
[315134224,1708870231732,-150.0,0.00023657,2]
[315134225,1708870231741,-150.0,0.00023662,2]
[315134226,1708870231750,-150.0,0.00023663,2]
[315134227,1708870231759,-150.0,0.00023678,2]
[315134228,1708870231768,-202.03552153,0.00023682,2]
[315134229,1708870231777,-611.972,0.00023692,2]
[315134230,1708870231787,-360.04954198,0.00023692,2]
[315134231,1708870231798,-356.040995,0.00023692,2]
[315134232,1708870231810,-1783.90946302,0.00023692,2]
[315134233,1708870231819,-3392.9409,0.00023692,2]
[315134234,1708870231829,-1099.63540758,0.00023692,2]
[315134235,1708870231841,-465.96,0.00023692,2]
[315134236,1708870231873,-756.288378,0.00023692,2]
[315134237,1708870231893,-1036.6973515,0.00023692,2]
[315134238,1708870231905,-4411.9999997,0.00023692,2]
[315134239,1708870231933,-1535.70334019,0.00023692,2]
[315134240,1708870231945,-4831.1230188,0.00023692,2]
[315134241,1708870231966,-667.36237526,0.00023692,2]
[315134242,1708870231977,-1199.1659505,0.00023692,2]
[315134243,1708870231989,-896.99068152,0.00023692,2]
[315134244,1708870232000,-2378.59324902,0.00023692,2]
[315134245,1708870232011,-6426.01947512,0.00023692,2]
[315134246,1708870232023,-254.83,0.00023692,2]
[315134248,1708870232050,-284.21781758,0.00023692,2]
[315134265,1708870237646,-500.0,0.00023691,2]
[315134266,1708870237656,-5208.92676619,0.00023692,4]
[315134267,1708870237700,-302.52178472,0.00023692,4]
[315134268,1708870237712,-263.85947574,0.00023692,4]
[315134269,1708870237759,-5818.3670573,0.00023692,4]
[315134270,1708870237772,-301.0938381,0.00023692,4]
[315134271,1708870237815,-6434.39900771,0.00023692,4]
[315134272,1708870237827,-332.40342912,0.00023692,4]
[315134273,1708870237839,-1229.74947458,0.00023692,4]
[315134274,1708870237872,-1876.1,0.00023692,4]
[315134275,1708870237897,-6212.79490702,0.00023692,4]
[315134276,1708870237936,-310017.02833762,0.00023692,4]
[315134283,1708870240217,-3726.61482041,0.00023692,4]
[315134288,1708870240274,-616.27323693,0.00023692,4]
[315134289,1708870241134,-410.46085749,0.00023692,4]
[315134290,1708870241191,-259.68667592,0.00023692,4]
[315134296,1708870242739,-5308.52695592,0.00023692,4]
[315134299,1708870242752,-3252.90599445,0.00023692,4]
[315134300,1708870242764,-73458.05721246,0.00023692,4]
[315134301,1708870242797,-9573.04995469,0.00023692,4]
[315134302,1708870242912,-490826.1574264,0.00023692,4]
[315134303,1708870242921,-602430.02255556,0.00023692,2]
[315134304,1708870245673,-1000.24020856,0.00023692,2]
[315134305,1708870245729,-14979.7736096,0.00023692,2]
[315134306,1708870245784,-397.64341999,0.00023692,2]
[315134307,1708870245946,-410.116,0.00023692,2]
[315134309,1708870252157,1000.0,0.00023,2]
[315134311,1708870267869,1000.0,0.00023,2]
[315134312,1708870277640,898.6470767,0.00023,2]
[315134313,1708870305040,351.49,0.00022814,2]
[315134317,1708870323519,165.72,0.00022812,2]
[315134319,1708870353988,169.48,0.00022808,2]
[315134326,1708870458646,-100000.0,0.00024,30]
[315134330,1708870483977,10000.0,0.000235,2]
[315134333,1708870531292,2015.14,0.000235,2]
[315134337,1708870566819,237.04,0.00020827,2]
[315134338,1708870567201,237.04,0.0002309,2]
[315134340,1708870611549,4287.0,0.00023122,2]
[315134341,1708870612396,2000.0,0.00022752,2]
[315134343,1708870635060,409.92,0.00022808,2]
[315134345,1708870660304,250.0,0.00022808,2]
[315134346,1708870668118,171.66719874,0.0002349,2]
[315134347,1708870676886,1711.2744264,0.00023492,2]
[315134348,1708870695316,363.41,0.00022804,2]
[315134351,1708870796385,259.53,0.00022592,2]
[315134352,1708870797721,264.65160043,0.00022729,2]
[315134353,1708870812096,1140.8496176,0.00023492,2]
[315134355,1708870816158,168.37181207,0.00023489,2]
[315134358,1708870842299,175.74,0.00022795,2]
[315134359,1708870947281,760.56641172,0.00023492,2]
[315134360,1708870951585,168.37181206,0.00023488,2]
[315134361,1708870982668,150.0,0.0002336,2]
[315134362,1708870987974,1051.9722,0.0002342,2]
[315134364,1708871043352,213.33,0.00020887,2]
[315134365,1708871043592,213.33,0.00023151,2]
[315134366,1708871068504,413.26,0.00023178,2]
[315134367,1708871077076,168.37181206,0.00023492,2]
[315134368,1708871091359,363.01,0.00022798,2]
[315134369,1708871114745,672.06,0.00022803,2]
[315134370,1708871134438,302.84,0.00022811,2]
[315134371,1708871180092,177.79297123,0.00023485,2]
[315134372,1708871191830,2036.01778661,0.00023485,2]
[315134373,1708871235424,152.48,0.00022729,2]
[315134374,1708871235631,152.48,0.00022891,2]
[315134375,1708871235836,152.48,0.00023054,2]
[315134376,1708871236285,152.48,0.00023216,2]
[315134377,1708871236325,152.48,0.00023378,2]
[315134378,1708871283500,175.74,0.00022714,2]
[315134379,1708871322849,507.04427448,0.00023498,2]
[315134381,1708871414701,695.0,0.00023501,2]
[315134387,1708871431893,-618.6902676,0.00023502,2]
[315134388,1708871431903,-773.7364309,0.00023503,2]
[315134389,1708871431913,-161.61243119,0.00023513,2]
[315134390,1708871431925,-1215.43704177,0.0002352,2]
[315134391,1708871431951,-24015.05696979,0.0002352,2]
[315134392,1708871431961,-385.93,0.0002352,2]
[315134393,1708871431971,-2036.01778661,0.00023523,2]
[315134394,1708871431981,-152.48,0.00023541,2]
[315134395,1708871431990,-2036.01778661,0.0002356,2]
[315134396,1708871431999,-15052.88707565,0.00023581,2]
[315134397,1708871432063,-533.17366,0.00023581,2]
[315134398,1708871432121,-7960.55023118,0.00023581,2]
[315134399,1708871432180,-730.12545248,0.00023581,2]
[315134400,1708871432192,-5109.27411734,0.00023581,2]
[315134401,1708871432203,-903.08739323,0.00023581,2]
[315134402,1708871432215,-939.12277419,0.00023581,2]
[315134418,1708871437839,-261.99836,0.00023581,4]
[315134419,1708871437851,-57981.30851793,0.00023581,4]
[315134420,1708871437862,-3268.65552181,0.00023581,4]
[315134421,1708871437896,-2469.68902819,0.00023581,4]
[315134422,1708871437908,-1241.64267898,0.00023581,4]
[315134423,1708871437953,-3513.81528001,0.00023581,4]
[315134424,1708871438065,-7236.25579043,0.00023581,4]
[315134425,1708871439335,-926.43041174,0.00023581,4]
[315134426,1708871439346,-596.04655466,0.00023581,4]
[315134437,1708871440417,-83379.34469022,0.00023581,4]
[315134440,1708871440428,-766.66555664,0.00023581,4]
[315134444,1708871440479,-1224.96970469,0.00023581,4]
[315134445,1708871440490,-1318.60145232,0.00023581,4]
[315134446,1708871440501,-10029.23592579,0.00023581,4]
[315134447,1708871440588,-2841.579722,0.00023581,4]
[315134448,1708871441346,-158459.6298177,0.00023581,4]
[315134449,1708871441357,-5082.688,0.00023581,4]
[315134467,1708871445068,-1905.70210342,0.00023581,4]
[315134469,1708871445080,-2457.75432421,0.00023581,4]
[315134472,1708871445095,-176418.35684558,0.00023581,4]
[315134480,1708871445921,-173458.64612597,0.00023581,4]
[315134481,1708871445935,-2209.97,0.00023582,2]
[315134482,1708871445944,-422.4969,0.00023592,2]
[315134483,1708871445954,-1163.0575,0.00023592,2]
[315134484,1708871445963,-217759.4888,0.00023592,2]
[315134485,1708871445975,-62933.0962,0.00023592,2]
[315134486,1708871445985,-2036.01778661,0.00023598,2]
[315134487,1708871445994,-206.0,0.000236,2]
[315134488,1708871446005,-2036.01778661,0.00023636,2]
[315134489,1708871446015,-2036.01778661,0.00023674,2]
[315134490,1708871446025,-150.0,0.00023677,2]
[315134491,1708871446035,-471.4082,0.00023693,2]
[315134492,1708871446044,-144481.98974766,0.00023693,2]
[315134493,1708871446057,-100518.01025234,0.00023693,2]
[315134494,1708871446067,-39591.2552,0.00023693,2]
[315134495,1708871446077,-1000.0,0.00023693,2]
[315134496,1708871446086,-21597.8665,0.00023693,2]
[315134497,1708871446096,-500.0,0.00023693,2]
[315134498,1708871446105,-152.48,0.00023703,2]
[315134499,1708871446114,-150.0,0.00023706,2]
[315134500,1708871446124,-150.0,0.00023706,2]
[315134501,1708871446133,-2036.01778661,0.00023711,2]
[315134502,1708871446142,-150.0,0.00023735,2]
[315134503,1708871446151,-150.0,0.0002374,2]
[315134504,1708871446161,-150.0,0.0002374,2]
[315134505,1708871446171,-150.0,0.00023741,2]
[315134506,1708871446180,-150.0,0.00023747,2]
[315134507,1708871446189,-2036.01778661,0.00023749,2]
[315134508,1708871446199,-162.43,0.0002375,2]
[315134509,1708871446208,-150.0,0.00023782,2]
[315134510,1708871446217,-2036.01778661,0.00023787,2]
[315134511,1708871446226,-436.93610474,0.00023791,2]
[315134512,1708871446236,-1229.85267342,0.00023798,2]
[315134513,1708871446245,-1229.85267342,0.00023798,2]
[315134514,1708871446254,-1229.85267342,0.00023798,2]
[315134515,1708871446263,-1229.85267342,0.00023798,2]
[315134516,1708871446272,-1229.85267342,0.00023798,2]
[315134517,1708871446281,-1229.85267342,0.00023798,2]
[315134518,1708871446290,-872.95309604,0.00023798,2]
[315134519,1708871446300,-872.95309596,0.00023798,2]
[315134520,1708871446309,-872.95309596,0.00023798,2]
[315134521,1708871446318,-872.95309596,0.00023798,2]
[315134522,1708871446327,-872.95309596,0.00023798,2]
[315134523,1708871446337,-872.95309596,0.00023798,2]
[315134524,1708871446346,-872.95309596,0.00023798,2]
[315134525,1708871446356,-150.0,0.00023805,2]
[315134526,1708871446365,-1229.85267342,0.00023809,2]
[315134527,1708871446375,-872.95309596,0.00023809,2]
[315134528,1708871446575,-150.0,0.00023816,2]
[315134529,1708871446596,-1500.0,0.0002382,2]
[315134530,1708871446619,-150.0,0.00023824,2]
[315134531,1708871446640,-2036.01778661,0.00023825,2]
[315134532,1708871446661,-150.0,0.00023829,2]
[315134533,1708871446673,-150.0,0.00023836,2]
[315134534,1708871446682,-1229.85267342,0.00023855,2]
[315134535,1708871446692,-872.95309596,0.00023855,2]
[315134536,1708871446701,-2036.01778661,0.00023862,2]
[315134537,1708871446711,-152.48,0.00023865,2]
[315134538,1708871446721,-150.0,0.00023892,2]
[315134539,1708871446730,-300.0,0.00023896,2]
[315134540,1708871446739,-300.0,0.00023896,2]
[315134541,1708871446749,-303.05778823,0.00023896,2]
[315134542,1708871446759,-1158.91926804,0.00023897,2]
[315134543,1708871446768,-1229.85267342,0.000239,2]
[315134544,1708871446778,-2036.01778661,0.000239,2]
[315134545,1708871446788,-872.95309596,0.000239,2]
[315134546,1708871446798,-5241.4353,0.000239,2]
[315134547,1708871446809,-255.73494363,0.000239,2]
[315134548,1708871446819,-75073.80789272,0.00023901,2]
[315134549,1708871446832,-1076.6485287,0.00023901,2]
[315134550,1708871446865,-1676.0,0.00023901,2]
[315134551,1708871446876,-260.2734,0.00023901,2]
[315134552,1708871446892,-1468.49402391,0.00023901,2]
[315134553,1708871446903,-524.75407392,0.00023901,2]
[315134554,1708871492266,1876.65,0.0002311,30]
[315134556,1708871564442,191.99,0.00021068,2]
[315134557,1708871564838,191.99,0.00023332,2]
[315134558,1708871590873,252.36,0.00022979,2]
[315134559,1708871600672,6461.14340191,0.0002349,2]
[315134560,1708871600695,10747.34559809,0.0002349,2]
[315134561,1708871602122,158.40450931,0.0002349,2]
[315134562,1708871614669,462.35,0.00022974,2]
[315134563,1708871659687,5000.0,0.0002349,2]
[315134564,1708871682840,164.56184232,0.0002349,2]
[315134565,1708871702835,164.56184232,0.0002349,2]
[315134566,1708871728848,164.56184232,0.0002349,2]
[315134567,1708871743809,157.65,0.00022959,2]
[315134568,1708871744103,157.65,0.00023287,2]
[315134570,1708871746848,164.56184232,0.0002349,2]
[315134572,1708871767321,164.56184232,0.0002349,2]
[315134573,1708871776766,5000.0,0.0002349,2]
[315134575,1708871789484,91995.8363,0.00023488,2]
[315134576,1708871792853,164.56184232,0.0002349,2]
[315134578,1708871810855,164.56184232,0.0002349,2]
[315134579,1708871812223,207.6925,0.00023489,2]
[315134581,1708871830865,164.56184232,0.0002349,2]
[315134582,1708871846867,164.56184232,0.00023489,2]
[315134583,1708871868860,297.86344672,0.00023489,2]
[315134584,1708871939101,980.3948,0.00023487,2]
[315134585,1708871977132,1130.6176,0.00023486,2]
[315134586,1708872046077,210.3,0.00022958,2]
[315134588,1708872063185,290.4,0.00022958,2]
[315134589,1708872070280,500.0,0.00023486,2]
[315134590,1708872088977,630.12,0.0002296,2]
[315134591,1708872095399,9600.5004,0.00023487,2]
[315134592,1708872099593,219.3,0.00021044,2]
[315134593,1708872099837,219.3,0.00023308,2]
[315134594,1708872119394,20905.0,0.000235,2]
[315134595,1708872126394,250.0,0.00022966,2]
[315134596,1708872241340,151.49,0.00022843,2]
[315134597,1708872348630,1101.77,0.00022818,2]
[315134598,1708872392277,200.0,0.00022816,2]
[315134600,1708872426002,176.09,0.00022821,2]
[315134601,1708872430117,-157.65,0.00023615,2]
[315134602,1708872430137,-578.91,0.0002363,2]
[315134603,1708872430160,-150.0,0.00023675,2]
[315134604,1708872430179,-78579.05908884,0.00023678,2]
[315134605,1708872430199,-16654.81889568,0.00023679,2]
[315134606,1708872452963,254.87,0.00022842,2]
[315134607,1708872524697,273.06,0.00022783,2]
[315134608,1708872562582,495.9,0.00022785,2]
[315134609,1708872608353,197.37,0.00020851,2]
[315134610,1708872608550,197.37,0.00023115,2]
[315134621,1708872635503,-533.26888103,0.00023579,2]
[315134622,1708872635515,-971.17290708,0.00023579,2]
[315134623,1708872635635,-587.18691189,0.00023579,2]
[315134624,1708872635645,-159.13134639,0.0002361,2]
[315134625,1708872635654,-1238.27270839,0.00023676,2]
[315134626,1708872635744,-4558.58889161,0.00023676,2]
[315134627,1708872635754,-305.7726014,0.00023677,2]
[315134628,1708872635764,-300.0,0.00023678,2]
[315134629,1708872635774,-371.44088678,0.00023679,2]
[315134630,1708872635787,-10149.03309069,0.00023679,2]
[315134631,1708872635799,-5111.92194694,0.00023679,2]
[315134632,1708872635810,-2131.60736237,0.00023679,2]
[315134633,1708872635822,-270.787479,0.00023679,2]
[315134636,1708872635841,-2266.04493448,0.00023679,2]
[315134638,1708872635852,-3925.59339773,0.00023679,2]
[315134640,1708872635864,-853.15156266,0.00023679,2]
[315134642,1708872635877,-741.8811006,0.00023679,2]
[315134644,1708872635888,-1064.25258234,0.00023679,2]
[315134645,1708872635919,-36511.67126073,0.00023679,2]
[315134646,1708872635928,-159.13134638,0.0002368,2]
[315134648,1708872635937,-338.02951632,0.0002368,2]
[315134649,1708872635946,-305.77260135,0.00023697,2]
[315134650,1708872635955,-150.0,0.00023703,2]
[315134651,1708872635977,-200.0,0.00023711,2]
[315134652,1708872636005,-200.0,0.00023711,2]
[315134653,1708872636039,-800.0,0.00023711,2]
[315134654,1708872636080,-200.0,0.00023711,2]
[315134655,1708872636111,-200.0,0.00023711,2]
[315134656,1708872636124,-200.0,0.00023712,2]
[315134657,1708872636134,-150.0,0.00023714,2]
[315134658,1708872636144,-305.77260135,0.00023718,2]
[315134659,1708872636153,-417.91,0.00023718,2]
[315134660,1708872636163,-690.4,0.00023718,2]
[315134661,1708872636173,-499.99,0.00023718,2]
[315134662,1708872636183,-150.0,0.00023727,2]
[315134663,1708872636193,-305.77260135,0.00023738,2]
[315134664,1708872636203,-380.1,0.00023757,2]
[315134665,1708872636213,-1000.0,0.00023757,2]
[315134666,1708872636222,-52386.03939256,0.00023758,2]
[315134667,1708872636232,-305.77260135,0.00023758,2]
[315134668,1708872636242,-150.0,0.00023762,2]
[315134669,1708872636252,-39780.1023427,0.00023775,4]
[315134670,1708872636295,529.72754677,0.00023578,2]
[315134682,1708872638138,-782.52983112,0.00023775,4]
[315134683,1708872638240,-1024.8,0.00023775,4]
[315134684,1708872638251,-10270.65618624,0.00023775,4]
[315134698,1708872644589,-6137.16405938,0.00023775,4]
[315134699,1708872644602,-789.39094403,0.00023775,4]
[315134700,1708872644627,-735.57180254,0.00023775,4]
[315134701,1708872644639,-358.76694368,0.00023775,4]
[315134702,1708872644650,-5940.85119783,0.00023775,4]
[315134703,1708872644661,-2871.89421588,0.00023775,4]
[315134704,1708872644672,-10054.61947013,0.00023775,4]
[315134705,1708872644683,-2731.09173429,0.00023775,4]
[315134706,1708872644694,-2074.88851497,0.00023775,4]
[315134707,1708872644706,-293.59112959,0.00023775,4]
[315134710,1708872644729,-2766.73387216,0.00023775,4]
[315134711,1708872644740,-19756.05152102,0.00023775,4]
[315134712,1708872644751,-2609.29076349,0.00023775,4]
[315134713,1708872644778,-1679.045025,0.00023775,4]
[315134714,1708872644790,-416628.04657123,0.00023775,4]
[315134715,1708872644799,-305.77260135,0.00023778,2]
[315134716,1708872644808,-1063902.35906169,0.00023779,2]
[315134717,1708872644817,-255.73494361,0.0002378,2]
[315134718,1708872644827,-558196.108682,0.0002378,3]
[315134719,1708872644836,-150.0,0.0002378,2]
[315134720,1708872644845,-338.02951632,0.0002379,2]
[315134721,1708872644854,-182797.99952651,0.00023797,2]
[315134722,1708872644872,-15561.07181163,0.00023797,2]
[315134723,1708872644884,-46640.92866186,0.00023797,2]
[315134724,1708872644893,-345801.7259,0.00023797,2]
[315134725,1708872644903,-11440.1859,0.00023797,2]
[315134726,1708872644912,-3575.89879747,0.00023798,2]
[315134727,1708872644921,-3575.89879741,0.00023798,2]
[315134728,1708872644930,-3575.89879741,0.00023798,2]
[315134729,1708872644939,-3575.89879741,0.00023798,2]
[315134730,1708872644948,-3575.89879741,0.00023798,2]
[315134731,1708872644957,-3575.89879741,0.00023798,2]
[315134732,1708872644967,-1018.84754007,0.00023798,2]
[315134733,1708872644976,-1018.84754,0.00023798,2]
[315134734,1708872644985,-1018.84754,0.00023798,2]
[315134735,1708872644994,-1018.84754,0.00023798,2]
[315134736,1708872645003,-1018.84754,0.00023798,2]
[315134737,1708872645012,-305.77260135,0.00023799,2]
[315134738,1708872645022,-1018.84754,0.00023801,2]
[315134739,1708872645031,-150.0,0.00023804,2]
[315134740,1708872645042,-150.0,0.00023818,2]
[315134741,1708872645051,-305.77260135,0.00023819,2]
[315134742,1708872645060,-3575.89879741,0.00023821,2]
[315134743,1708872645070,-1018.84754,0.00023826,2]
[315134744,1708872645079,-1500.0,0.00023835,2]
[315134745,1708872645089,-305.77260135,0.00023839,2]
[315134746,1708872645098,-3575.89879741,0.00023847,2]
[315134747,1708872645108,-152.0,0.00023849,2]
[315134748,1708872645117,-246.0,0.00023849,2]
[315134749,1708872645126,-1018.84754,0.0002385,2]
[315134750,1708872645136,-305.77260135,0.00023859,2]
[315134751,1708872645145,-150.0,0.00023873,2]
[315134752,1708872645155,-3575.89879741,0.00023874,2]
[315134753,1708872645164,-1018.84754,0.00023875,2]
[315134754,1708872645173,-305.77260135,0.0002388,2]
[315134755,1708872645183,-150.0,0.00023882,2]
[315134756,1708872645193,-285.44,0.00023897,2]
[315134757,1708872645202,-162.4257198,0.000239,2]
[315134758,1708872645212,-2017.57105653,0.000239,2]
[315134759,1708872645222,-500.0,0.000239,2]
[315134760,1708872645231,-3575.89879741,0.000239,2]
[315134761,1708872645241,-1018.84754,0.000239,2]
[315134762,1708872645250,-305.77260135,0.000239,2]
[315134763,1708872645260,-338.02951632,0.000239,2]
[315134764,1708872645270,-128162.46358021,0.00023901,2]
[315134765,1708872645280,-2000.0,0.00023901,2]
[315134766,1708872645290,-200.0,0.00023901,2]
[315134767,1708872645302,-2000.0,0.00023901,2]
[315134768,1708872645313,-200.0,0.00023901,2]
[315134769,1708872645322,-2000.0,0.00023901,2]
[315134770,1708872645332,-200.0,0.00023901,2]
[315134771,1708872645342,-200.0,0.00023901,2]
[315134772,1708872645351,-150.0,0.00023909,2]
[315134773,1708872645361,-164.99,0.0002392,2]
[315134774,1708872645374,-157.65,0.00023943,2]
[315134775,1708872645383,-5250.0,0.0002399,2]
[315134776,1708872645394,-5250.0,0.0002399,3]
[315134777,1708872645404,-5250.0,0.0002399,4]
[315134778,1708872645414,-4522.0308401,0.00023995,2]
[315134779,1708872645424,-4608.6721994,0.00023995,2]
[315134780,1708872645435,-155.21892676,0.00023996,3]
[315134781,1708872645444,-155.0,0.00023997,2]
[315134782,1708872645454,-260.3733064,0.00023998,2]
[315134783,1708872645463,-15494.83343246,0.00023998,2]
[315134784,1708872645473,-300.0,0.00023998,2]
[315134785,1708872645483,-394.83096144,0.00023999,2]
[315134786,1708872645494,-475.11608395,0.00023999,2]
[315134787,1708872645503,-316.85450581,0.00023999,2]
[315134788,1708872645514,-150.69525563,0.00023999,2]
[315134789,1708872645523,-1000.0,0.00023999,2]
[315134790,1708872645532,-333.27929254,0.00023999,10]
[315134791,1708872645543,-333.27929254,0.00023999,10]
[315134792,1708872645553,-333.27929254,0.00023999,10]
[315134793,1708872645563,-333.27929254,0.00023999,10]
[315134794,1708872645573,-333.27929254,0.00023999,10]
[315134795,1708872645582,-333.27929253,0.00023999,10]
[315134796,1708872645591,-993274.62893094,0.00024,30]
[315134797,1708872645608,-466.7139801,0.00024,30]
[315134798,1708872645625,-8654.56495742,0.00024,30]
[315134799,1708872645636,-10946.69980484,0.00024,30]
[315134800,1708872645661,-229214.63266116,0.00024,30]
[315134801,1708872645672,-949557.21722776,0.00024,30]
[315134802,1708872645698,-1857.48525175,0.00024,30]
[315134806,1708872645863,-104897.53153124,0.00024,30]
[315134807,1708872645875,-368.24413926,0.00024,30]
[315134808,1708872645901,-4568.12145839,0.00024,30]
[315134809,1708872645912,-47467.19140727,0.00024,30]
[315134810,1708872645923,-644.77640894,0.00024,30]
[315134818,1708872646487,-9502.58316201,0.00024,30]
[315134820,1708872646499,-4461.99168737,0.00024,30]
[315134822,1708872646511,-68297.1825465,0.00024,30]
[315134824,1708872646522,-5523.41773279,0.00024,30]
[315134827,1708872646532,-18072.45196985,0.00024,30]
[315134829,1708872646545,-26707.44421196,0.00024,30]
[315134831,1708872646556,-258652.3853314,0.00024,30]
[315134834,1708872646576,-757.39838594,0.00024,30]
[315134836,1708872646591,-19541.12168,0.00024,30]
[315134838,1708872646607,-1496.34999998,0.00024,30]
[315134839,1708872646623,-266.24017573,0.00024,30]
[315134840,1708872646634,-14866.81179941,0.00024,30]
[315134841,1708872646654,-3664.8,0.00024,30]
[315134843,1708872646665,-4789.05967063,0.00024,30]
[315134846,1708872646718,-141310.05423044,0.00024,30]
[315134847,1708872659756,153.0,0.00023353,2]
[315134848,1708872667638,155.0,0.00023353,2]
[315134849,1708872727237,1018.45922372,0.00023,3]
[315134850,1708872751310,143.81322951,0.00023353,2]
[315134851,1708872751334,87.18677049,0.00023353,2]
[315134852,1708872796992,155.23,0.00022801,2]
[315134853,1708872797225,155.23,0.00023561,2]
[315134855,1708872863370,200.0,0.00022794,2]
[315134856,1708872888506,176.09,0.00022794,2]
[315134857,1708872991083,227.55,0.000228,2]
[315134858,1708873018348,603.28,0.000228,2]
[315134859,1708873047111,6595.43322951,0.00023,6]
[315134860,1708873047136,7602.35322951,0.00023,6]
[315134861,1708873047159,941.69272479,0.00023,6]
[315134862,1708873212814,2886.0,0.00023288,2]
[315134863,1708873223919,177.63,0.00020874,2]
[315134864,1708873224128,177.63,0.00023138,2]
[315134865,1708873299844,1758.74,0.00023288,2]
[315134866,1708873299865,1121.26,0.00023288,2]
[315134867,1708873324782,878.74,0.00022811,2]
[315134868,1708873324819,460.66050472,0.00022811,2]
[315134869,1708873324839,660.59949528,0.00022811,2]
[315134870,1708873331990,1339.40050472,0.0002314,2]
[315134871,1708873332010,817.03760809,0.0002314,2]
[315134872,1708873348268,150.0,0.00022816,2]
[315134873,1708873353900,154.84,0.00022818,2]
[315134874,1708873354124,154.84,0.00023275,2]
[315134875,1708873376080,232.32,0.00022814,2]
[315134876,1708873391563,513.0,0.0002701,120]
[315134877,1708873407985,490.96239191,0.0002335,2]
[315134878,1708873408006,1665.4757209,0.0002335,2]
[315134879,1708873420329,334.5242791,0.000235,2]
[315134880,1708873420350,1165.4757209,0.000235,2]
[315134881,1708873420974,834.5242791,0.00023,2]
[315134882,1708873420995,665.4757209,0.00023,2]
[315134883,1708873424897,204.54596459,0.00023499,2]
[315134884,1708873479981,517.37,0.00022795,2]
[315134885,1708873521433,189.62,0.00022795,2]
[315134886,1708873577154,250.0,0.00022806,2]
[315134887,1708873579143,172.98831451,0.00022806,2]
[315134888,1708873579165,1.53168549,0.00022806,2]
[315134889,1708873606406,1998.46831451,0.0002341,2]
[315134890,1708873606426,2000.0,0.0002341,2]
[315134891,1708873606447,2000.0,0.0002341,2]
[315134892,1708873606467,2000.0,0.0002341,2]
[315134893,1708873606487,2000.0,0.0002341,2]
[315134894,1708873606506,915.53168549,0.0002341,2]
[315134895,1708873676191,768.53600161,0.0002348,2]
[315134896,1708873701463,236.27,0.00020896,2]
[315134897,1708873701680,79.6623129,0.0002316,2]
[315134898,1708873701702,156.6076871,0.0002316,2]
[315134899,1708873725082,155.99,0.00022984,2]
[315134905,1708873831429,164.99,0.00022817,2]
[315134913,1708873832313,-232.13612053,0.00023612,2]
[315134914,1708873832322,-279.0,0.00023615,2]
[315134915,1708873832332,-571.7,0.0002363,2]
[315134916,1708873832341,-168.81511788,0.0002366,2]
[315134917,1708873832350,-150.0,0.00023724,2]
[315134918,1708873832359,-150.0,0.00023728,2]
[315134919,1708873832368,-154.84,0.00023731,2]
[315134920,1708873832378,-274.93239672,0.00023737,2]